bitfinex/quotes_BTCUSD_20220204
["timestamp","ask_amount","ask_price","bid_price","bid_amount"]
[1643965856621,0.04742185,37951.0,37950.0,0.2289061]
[1643965857068,0.24962405,37953.0,37950.0,0.38058716]
[1643965858670,0.24962405,37953.0,37950.0,0.22987674]
[1643965859270,0.24962405,37953.0,37951.0,0.22613148]
[1643965859568,0.77517031,37952.0,37951.0,0.22632795]
[1643965859770,0.95779184,37952.0,37951.0,0.00019647]
[1643965859971,1.00521369,37952.0,37950.0,0.0011671]
[1643965860173,1.34379877,37951.0,37950.0,0.00097063]
[1643965860824,1.52490916,37951.0,37948.0,0.00019647]
[1643965861021,1.52490916,37951.0,37947.0,0.019]
[1643965861022,0.04742185,37949.0,37947.0,0.01919647]
[1643965861221,0.60889746,37948.0,37947.0,0.01919647]
[1643965862322,0.68854299,37948.0,37947.0,0.01919647]
[1643965863524,0.68854299,37948.0,37947.0,0.019]
[1643965863923,0.68854299,37948.0,37947.0,0.01919647]
[1643965864769,0.68854299,37948.0,37947.0,0.019]
[1643965865170,0.68854299,37948.0,37947.0,0.01919647]
[1643965866075,0.29511936,37948.0,37947.0,0.02157815]
[1643965866273,0.29511936,37948.0,37947.0,0.01919647]
[1643965866274,0.04742185,37948.0,37947.0,0.01919647]
[1643965867074,0.04742185,37948.0,37947.0,0.019]
[1643965867274,0.04742185,37948.0,37947.0,0.01919647]
[1643965868323,0.49742185,37948.0,37947.0,0.019]
[1643965868726,0.7744311,37948.0,37947.0,0.01919647]
[1643965868924,0.49742185,37948.0,37947.0,0.01919647]
[1643965869725,0.04742185,37948.0,37947.0,0.01919647]
[1643965870323,0.44742185,37948.0,37947.0,0.01919647]
[1643965870523,0.44742185,37948.0,37947.0,0.01797547]
[1643965870724,0.04742185,37948.0,37947.0,0.01797547]
[1643965872169,0.04742185,37949.0,37947.0,0.24424429]
[1643965872369,0.04742185,37949.0,37947.0,0.31013329]
[1643965872769,0.04742185,37949.0,37947.0,0.24424429]
[1643965873168,0.04742185,37949.0,37947.0,0.24404782]
[1643965873368,0.04742185,37949.0,37947.0,0.24424429]
[1643965873569,0.35764207,37949.0,37947.0,0.24424429]
[1643965873972,0.35764207,37949.0,37947.0,0.24123609]
[1643965874170,0.70957128,37948.0,37947.0,0.24123609]
[1643965874371,0.7030853,37948.0,37947.0,0.0147708]
[1643965874572,0.42782403,37948.0,37947.0,0.01496727]
[1643965875471,0.07782403,37948.0,37947.0,0.01496727]
[1643965876717,0.07882403,37948.0,37947.0,0.01496727]
[1643965876916,0.07782403,37948.0,37947.0,0.01496727]
[1643965880171,0.75253105,37948.0,37947.0,0.01346307]
[1643965880369,0.75253105,37948.0,37947.0,0.01195887]
[1643965880370,0.35253105,37948.0,37947.0,0.01195887]
[1643965880570,0.07782403,37948.0,37947.0,0.01195887]
[1643965881779,0.03,37955.0,37947.0,0.62987474]
[1643965881971,0.03,37955.0,37954.0,1.04882315]
[1643965882172,0.03,37955.0,37954.0,1.48941965]
[1643965882369,0.01037103,37955.0,37954.0,1.55801128]
[1643965882570,0.01037103,37955.0,37954.0,1.10951924]
[1643965882769,0.01037103,37955.0,37954.0,1.06771924]
[1643965882971,0.01037103,37955.0,37954.0,1.02776924]
[1643965883228,0.01037103,37955.0,37954.0,0.556948]
[1643965883424,0.01037103,37955.0,37954.0,0.39882315]
[1643965883926,0.1084115,37955.0,37954.0,0.34882315]
[1643965884125,0.15583335,37955.0,37954.0,0.57238237]
[1643965884328,0.82534326,37955.0,37954.0,0.57238237]
[1643965884526,0.82534326,37955.0,37954.0,0.34618799]
[1643965885929,0.82534326,37955.0,37954.0,0.00257815]
[1643965886128,0.77792141,37955.0,37952.0,0.22619438]
[1643965886329,0.77792141,37955.0,37953.0,0.57265938]
[1643965886531,0.05,37954.0,37953.0,0.346465]
[1643965887379,0.05,37954.0,37953.0,0.57265938]
[1643965887779,0.05,37954.0,37953.0,0.346465]
[1643965888479,0.67988094,37955.0,37953.0,0.346465]
[1643965889079,0.67988094,37955.0,37953.0,0.57265938]
[1643965889278,0.67988094,37955.0,37953.0,0.5713418]
[1643965889482,0.67988094,37955.0,37953.0,0.34382984]
[1643965889678,0.67988094,37955.0,37953.0,0.34251226]
[1643965889879,0.67988094,37955.0,37953.0,0.34119468]
[1643965890080,0.67988094,37955.0,37953.0,0.3398771]
[1643965890281,0.67988094,37955.0,37953.0,0.34855952]
[1643965890934,0.01037103,37955.0,37953.0,0.5747539]
[1643965891135,0.01037103,37955.0,37954.0,0.57265938]
[1643965894473,0.01037103,37955.0,37954.0,0.5711553]
[1643965894770,0.01037103,37955.0,37954.0,0.56965122]
[1643965894968,0.01037103,37955.0,37954.0,0.56814714]
[1643965895168,0.01037103,37955.0,37954.0,0.346465]
[1643965895367,0.01037103,37955.0,37954.0,0.34496092]
[1643965895571,0.01037103,37955.0,37954.0,0.34345684]
[1643965895768,0.01037103,37955.0,37954.0,0.34195276]
[1643965895968,0.01037103,37955.0,37954.0,0.34044868]
[1643965896668,0.01037103,37955.0,37954.0,0.33544868]
[1643965897073,0.01037103,37955.0,37954.0,0.40130909]
[1643965897469,0.01037103,37955.0,37954.0,0.33544868]
[1643965898922,0.06037103,37955.0,37954.0,0.33544868]
[1643965899122,0.01037103,37955.0,37953.0,0.01]
[1643965899325,0.05,37954.0,37953.0,0.356465]
[1643965899524,0.01037103,37955.0,37953.0,0.356465]
[1643965903982,0.01037103,37955.0,37953.0,0.356365]
[1643965905923,0.01037103,37955.0,37953.0,0.456365]
[1643965906123,0.05,37954.0,37953.0,0.456365]
[1643965906422,0.01037103,37955.0,37953.0,0.49897221]
[1643965906423,0.01024523,37955.0,37953.0,0.49897221]
[1643965906623,0.00739279,37954.0,37953.0,0.68246037]
[1643965906824,0.01024523,37955.0,37953.0,0.72506758]
[1643965907023,0.01024523,37955.0,37953.0,0.49897221]
[1643965907225,0.01024523,37955.0,37953.0,0.456365]
[1643965907827,0.01024523,37955.0,37954.0,0.38907221]
[1643965908428,0.01763802,37955.0,37954.0,0.38907221]
[1643965908828,0.01763802,37955.0,37954.0,0.346465]
[1643965909230,0.01024523,37955.0,37954.0,0.346465]
[1643965909479,0.01763802,37955.0,37954.0,0.346365]
[1643965909676,0.01763802,37955.0,37954.0,0.38897221]
[1643965909872,0.01024523,37955.0,37954.0,0.38897221]
[1643965910075,0.00873546,37955.0,37954.0,0.38897221]
[1643965912276,0.01612825,37955.0,37954.0,0.38897221]
[1643965913722,0.00873546,37955.0,37954.0,0.38897221]
[1643965913923,0.00873546,37955.0,37954.0,0.68093458]
[1643965914124,0.00873546,37955.0,37954.0,0.68083458]
[1643965914523,0.00873546,37955.0,37954.0,0.45473921]
[1643965914722,0.00873546,37955.0,37954.0,0.50473921]
[1643965915123,0.00873546,37955.0,37954.0,0.462132]
[1643965915323,0.01612825,37955.0,37954.0,1.26537206]
[1643965916124,0.5937886,37965.0,37956.0,0.1467182]
[1643965916324,0.00096964,37957.0,37956.0,0.2125872]
[1643965916525,0.00096964,37957.0,37956.0,0.6090002]
[1643965917373,0.61370118,37962.0,37956.0,0.462282]
[1643965917573,0.61370118,37962.0,37956.0,0.115869]
[1643965917574,0.00096963,37958.0,37956.0,0.115869]
[1643965917774,0.00096963,37958.0,37954.0,1.00084406]
[1643965917973,0.00096963,37958.0,37955.0,0.346413]
[1643965918179,0.00096963,37958.0,37954.0,1.05084406]
[1643965918376,0.00096963,37958.0,37955.0,0.51018679]
[1643965918577,0.61370118,37962.0,37956.0,0.065871]
[1643965918777,0.00096964,37958.0,37956.0,0.065871]
[1643965918977,0.00096964,37958.0,37957.0,0.346413]
[1643965919177,0.00096964,37958.0,37957.0,0.346313]
[1643965919779,0.024371,37961.0,37956.0,0.065871]
[1643965919980,0.00096962,37959.0,37956.0,0.065871]
[1643965920382,0.00096962,37959.0,37958.0,0.05]
[1643965921028,0.61370118,37962.0,37958.0,0.115866]
[1643965921230,0.00096961,37960.0,37958.0,0.115866]
[1643965922028,0.00096961,37960.0,37958.0,0.065866]
[1643965922229,0.23938138,37962.0,37958.0,0.115866]
[1643965922428,0.23938138,37962.0,37958.0,0.065866]
[1643965922429,0.0254396,37961.0,37958.0,0.065866]
[1643965923031,0.0254396,37961.0,37954.0,1.22693943]
[1643965923334,0.02447,37961.0,37954.0,0.86910706]
[1643965923531,0.02447,37958.0,37954.0,0.86910706]
[1643965923930,0.28588027,37957.0,37954.0,0.86910706]
[1643965924132,0.302002,37956.0,37954.0,0.86900706]
[1643965924333,0.302002,37956.0,37954.0,0.86890706]
[1643965924575,0.302002,37956.0,37954.0,0.86880706]
[1643965925181,0.302002,37956.0,37955.0,0.346421]
[1643965925477,0.202002,37956.0,37955.0,0.346421]
[1643965926279,0.202002,37956.0,37955.0,0.57264191]
[1643965926779,0.202002,37956.0,37955.0,0.346421]
[1643965928529,0.00096964,37957.0,37955.0,0.346421]
[1643965928725,0.00096964,37957.0,37956.0,0.22633314]
[1643965928926,0.00067073,37957.0,37956.0,0.22633314]
[1643965929125,0.00067073,37957.0,37956.0,0.22623314]
[1643965929326,0.22586906,37960.0,37956.0,0.22623314]
[1643965929729,0.02447,37959.0,37956.0,0.22623314]
[1643965930328,0.5005692,37960.0,37956.0,0.22623314]
[1643965930727,0.00049639,37959.0,37956.0,0.22623314]
[1643965932973,0.02447,37958.0,37956.0,0.22623314]
[1643965933878,0.00103529,37959.0,37956.0,0.22623314]
[1643965934073,0.60047925,37960.0,37956.0,0.22623314]
[1643965934273,0.0001,37956.0,37954.0,1.15158319]
[1643965934474,0.0001,37956.0,37955.0,0.346421]
[1643965941776,0.0001,37956.0,37955.0,0.426421]
[1643965941975,0.0001,37956.0,37955.0,0.426321]
[1643965942173,0.0001,37956.0,37955.0,0.426221]
[1643965944826,0.0001,37956.0,37955.0,0.426121]
[1643965945025,0.0001,37956.0,37955.0,0.426021]
[1643965945225,0.0001,37956.0,37955.0,0.70869713]
[1643965946127,0.30595739,37959.0,37955.0,0.425921]
[1643965946328,0.30699035,37959.0,37958.0,0.08]
[1643965946628,0.33161387,37959.0,37958.0,0.08]
[1643965946826,0.60921221,37959.0,37958.0,0.08]
[1643965947077,0.02599996,37959.0,37958.0,0.08]
[1643965947275,0.00103296,37959.0,37958.0,0.30633446]
[1643965947473,0.10025353,37960.0,37958.0,0.30633446]
[1643965947673,0.024967,37959.0,37958.0,0.30633446]
[1643965948678,0.10025353,37960.0,37958.0,0.30633446]
[1643965948877,0.00137644,37960.0,37958.0,0.30633446]
[1643965949580,0.00103296,37960.0,37958.0,0.30633446]
[1643965949777,0.00034348,37961.0,37958.0,0.30623446]
[1643965949978,0.02599995,37961.0,37958.0,0.30603446]
[1643965951029,0.024967,37961.0,37958.0,0.30603446]
[1643965951229,0.02599995,37961.0,37958.0,0.30603446]
[1643965951831,0.02634343,37961.0,37958.0,0.30603446]
[1643965952234,0.02531048,37961.0,37958.0,0.30603446]
[1643965952431,0.02599995,37961.0,37958.0,0.30603446]
[1643965953431,0.024967,37961.0,37958.0,0.30603446]
[1643965953633,0.02599995,37961.0,37958.0,0.30603446]
[1643965954680,0.024967,37961.0,37958.0,0.30603446]
[1643965954880,0.02599995,37961.0,37958.0,0.30593446]
[1643965955478,0.02634342,37961.0,37958.0,0.30593446]
[1643965955878,0.02531047,37961.0,37958.0,0.30593446]
[1643965956078,0.02634342,37961.0,37958.0,0.30593446]
[1643965956881,0.02531047,37961.0,37958.0,0.30593446]
[1643965957181,0.02634342,37961.0,37958.0,0.30593446]
[1643965958226,0.02531047,37961.0,37958.0,0.30593446]
[1643965958426,0.02599995,37961.0,37958.0,0.30593446]
[1643965958628,0.02599995,37961.0,37958.0,0.0796]
[1643965959127,0.02634342,37961.0,37958.0,0.0796]
[1643965959327,0.02531047,37961.0,37958.0,0.0796]
[1643965959527,0.02634342,37961.0,37958.0,0.0796]
[1643965959729,0.02634342,37961.0,37958.0,0.30593446]
[1643965960529,0.02531047,37961.0,37958.0,0.30593446]
[1643965960728,0.02634342,37961.0,37958.0,0.30593446]
[1643965961729,0.02531047,37961.0,37958.0,0.30593446]
[1643965961974,0.02634342,37961.0,37958.0,0.30593446]
[1643965962975,0.02531047,37961.0,37958.0,0.30593446]
[1643965963177,0.02634342,37961.0,37958.0,0.30593446]
[1643965964278,0.02531047,37961.0,37958.0,0.0796]
[1643965964577,0.02634342,37961.0,37958.0,0.0796]
[1643965965276,0.02531047,37961.0,37958.0,0.0796]
[1643965965727,0.02634342,37961.0,37958.0,0.0796]
[1643965965926,0.02599995,37961.0,37958.0,0.0796]
[1643965966529,0.024967,37961.0,37958.0,0.0796]
[1643965966727,0.02634342,37961.0,37958.0,0.0796]
[1643965967330,0.33823899,37961.0,37958.0,0.0796]
[1643965967527,0.33823899,37961.0,37954.0,1.15172514]
[1643965967528,0.62092312,37961.0,37959.0,0.0796]
[1643965967732,1.71657286,37960.0,37959.0,0.0796]
[1643965967930,0.024967,37960.0,37959.0,0.0796]
[1643965968328,0.924967,37960.0,37959.0,0.0796]
[1643965969131,0.924967,37960.0,37956.0,0.22633446]
[1643965969330,0.90034347,37960.0,37956.0,0.22633446]
[1643965969582,0.024967,37959.0,37956.0,0.22633446]
[1643965969780,0.02531047,37959.0,37956.0,0.22633446]
[1643965970388,0.02634344,37959.0,37956.0,0.22633446]
[1643965971386,0.02531047,37959.0,37956.0,0.22633446]
[1643965971585,0.02634344,37959.0,37956.0,0.22633446]
[1643965972586,0.02531047,37959.0,37956.0,0.22633446]
[1643965972786,0.02634344,37959.0,37956.0,0.22633446]
[1643965973627,0.02634344,37959.0,37957.0,0.22633446]
[1643965973926,0.02634344,37959.0,37955.0,0.065879]
[1643965973927,0.02634344,37959.0,37956.0,0.22633446]
[1643965974127,0.02634344,37959.0,37957.0,0.22633446]
[1643965974828,0.30381124,37959.0,37957.0,0.22633446]
[1643965975027,0.02531047,37959.0,37956.0,0.22633446]
[1643965975427,0.02531047,37959.0,37957.0,0.22633446]
[1643965975631,0.30001323,37959.0,37957.0,0.22633446]
[1643965975828,0.30676129,37959.0,37956.0,0.22633446]
[1643965976328,0.00103297,37959.0,37956.0,0.22633446]
[1643965976528,0.00137645,37959.0,37956.0,0.22633446]
[1643965977386,0.00034348,37959.0,37956.0,0.22633446]
[1643965977586,0.00103297,37959.0,37956.0,0.22633446]
[1643965977785,0.00137645,37959.0,37956.0,0.22633446]
[1643965978585,0.00034348,37959.0,37956.0,0.22633446]
[1643965978786,0.1031348,37958.0,37956.0,0.22633446]
[1643965979186,0.00137645,37959.0,37956.0,0.22633446]
[1643965979786,0.00034348,37959.0,37956.0,0.22633446]
[1643965979986,0.00103297,37959.0,37956.0,0.22633446]
[1643965980286,0.00062165,37959.0,37956.0,0.22633446]
[1643965980928,0.00034348,37959.0,37956.0,0.22633446]
[1643965981128,0.60308198,37960.0,37955.0,0.29221346]
[1643965981326,0.00034348,37959.0,37955.0,0.29221346]
[1643965981531,0.60308198,37960.0,37955.0,0.29221346]
[1643965981928,0.08837234,37958.0,37955.0,0.29221346]
[1643965982830,0.08837234,37958.0,37955.0,0.34221346]
[1643965983028,0.08837234,37958.0,37956.0,0.22633446]
[1643965984874,0.08837234,37958.0,37955.0,0.34221346]
[1643965985074,0.38399493,37957.0,37955.0,0.34221346]
[1643965985474,0.08837234,37958.0,37955.0,0.34221346]
[1643965986876,0.23334384,37957.0,37955.0,0.34221346]
[1643965988078,0.08837234,37958.0,37955.0,0.34221346]
[1643965989135,0.27891982,37957.0,37955.0,0.34221346]
[1643965989535,0.27891982,37957.0,37955.0,0.29221346]
[1643965989742,0.56165134,37957.0,37955.0,0.065879]
[1643965990137,0.28273152,37956.0,37955.0,0.065879]
[1643965990336,0.66772341,37957.0,37955.0,0.065879]
[1643965990535,0.66772341,37957.0,37954.0,1.00055606]
[1643965990536,0.28255752,37956.0,37954.0,1.00055606]
[1643965990737,0.74245956,37957.0,37954.0,1.00158973]
[1643965990738,1.63255752,37955.0,37954.0,1.00158973]
[1643965991835,1.63255752,37955.0,37954.0,1.00055606]
[1643965993387,1.35,37955.0,37954.0,1.00055606]
[1643965998429,1.4,37955.0,37954.0,1.00055606]
[1643965998631,0.065905,37953.0,37948.0,0.00019474]
[1643965998837,1.71830818,37949.0,37947.0,0.01392504]
[1643965999033,2.45369328,37948.0,37947.0,0.0117624]
[1643965999232,2.45369328,37948.0,37947.0,0.1435774]
[1643965999497,2.10539999,37948.0,37947.0,0.1435774]
[1643965999688,2.10539999,37948.0,37947.0,0.01195714]
[1643966000489,2.10539999,37948.0,37946.0,0.065907]
[1643966001494,2.10539999,37948.0,37942.0,0.00019436]
[1643966001690,0.06591413,37946.0,37941.0,0.01129436]
[1643966001890,1.36365196,37942.0,37941.0,0.01129436]
[1643966002093,1.72429521,37942.0,37941.0,0.01129436]
[1643966002293,0.67429521,37942.0,37941.0,0.01129436]
[1643966006026,0.32237766,37946.0,37941.0,0.01129436]
[1643966006227,0.29648916,37953.0,37949.0,0.48631447]
[1643966006428,0.90241276,37955.0,37949.0,0.065901]
[1643966006429,0.29648916,37955.0,37949.0,0.065901]
[1643966006730,0.57070904,37957.0,37948.0,0.05019436]
[1643966006992,0.1897842,37956.0,37948.0,0.05]
[1643966007186,0.96909498,37949.0,37948.0,0.05019436]
[1643966008690,0.065903,37954.0,37948.0,0.10019436]
[1643966008891,0.3896,37957.0,37949.0,0.05]
[1643966009090,0.3896,37957.0,37949.0,0.00019436]
[1643966009091,0.2961346,37956.0,37949.0,0.00019436]
[1643966009293,0.2961346,37956.0,37948.0,0.05019436]
[1643966009690,1.12082682,37949.0,37948.0,0.05019436]
[1643966011332,1.44937988,37949.0,37948.0,0.05019436]
[1643966011531,1.12082682,37949.0,37947.0,0.05019436]
[1643966011731,1.12082682,37949.0,37943.0,0.28499154]
[1643966012133,1.40991059,37949.0,37943.0,0.28499154]
[1643966012832,1.12082682,37949.0,37943.0,0.58112614]
[1643966013233,1.12082682,37949.0,37943.0,0.55947531]
[1643966013433,1.12082682,37949.0,37943.0,0.11610136]
[1643966013731,1.12082682,37949.0,37943.0,0.115907]
[1643966014580,0.06590938,37948.0,37943.0,0.05]
[1643966014776,0.06590938,37948.0,37942.0,0.00019436]
[1643966014979,0.29875762,37947.0,37941.0,0.35844754]
[1643966015176,0.06590938,37948.0,37941.0,0.35844754]
[1643966015377,0.13182038,37948.0,37941.0,0.35844754]
[1643966015777,0.26548772,37942.0,37941.0,0.35844754]
[1643966016176,0.26548772,37942.0,37941.0,0.19310136]
[1643966017378,0.26293957,37942.0,37941.0,0.19310136]
[1643966018080,0.42795498,37948.0,37941.0,0.19310136]
[1643966018332,0.36204398,37948.0,37941.0,0.19310136]
[1643966018532,0.42795498,37948.0,37941.0,0.19310136]
[1643966018732,0.13182038,37948.0,37941.0,0.19310136]
[1643966018933,1.12532682,37949.0,37941.0,0.19310136]
[1643966019132,0.22364081,37945.0,37941.0,0.19310136]
[1643966019332,1.12532682,37949.0,37941.0,0.19310136]
[1643966019533,0.30407065,37948.0,37942.0,0.115903]
[1643966019737,0.30407065,37948.0,37942.0,0.11609736]
[1643966020136,0.37082682,37949.0,37946.0,0.05]
[1643966020434,0.27986198,37948.0,37943.0,0.00019436]
[1643966020635,0.57420857,37948.0,37946.0,0.065895]
[1643966020835,0.29451723,37947.0,37946.0,0.00102967]
[1643966021232,0.08083844,37947.0,37946.0,0.00102967]
[1643966021633,0.83083844,37947.0,37946.0,0.00102967]
[1643966021833,0.08083844,37947.0,37946.0,0.1]
[1643966022278,0.27986198,37948.0,37946.0,0.10019436]
[1643966023076,0.27986198,37948.0,37946.0,0.05]
[1643966023275,0.27986198,37948.0,37946.0,0.05019436]
[1643966023477,0.27986198,37948.0,37946.0,0.10019436]
[1643966023478,0.35610172,37948.0,37946.0,0.10019436]
[1643966023681,0.35610172,37948.0,37946.0,0.05019436]
[1643966023977,0.35610172,37948.0,37946.0,0.00019436]
[1643966024178,0.35610172,37948.0,37945.0,0.00019436]
[1643966024377,0.35610172,37948.0,37945.0,0.00102967]
[1643966024577,0.35610172,37948.0,37945.0,0.00122403]
[1643966025377,0.28414145,37947.0,37945.0,0.00019436]
[1643966025579,0.28414145,37947.0,37945.0,0.00102968]
[1643966025828,0.28414145,37947.0,37945.0,0.00122404]
[1643966026631,0.27986198,37948.0,37945.0,0.00019436]
[1643966026830,0.27986198,37948.0,37944.0,0.18179]
[1643966026831,0.27986198,37948.0,37946.0,0.05]
[1643966027036,0.27986198,37948.0,37947.0,0.05]
[1643966027232,0.27986198,37948.0,37947.0,0.05019436]
[1643966027436,0.38173299,37948.0,37947.0,0.05019436]
[1643966027631,1.33173299,37948.0,37947.0,0.00019436]
[1643966027834,1.33173299,37948.0,37946.0,0.05]
[1643966028132,1.33173299,37948.0,37946.0,0.10102967]
[1643966028332,1.33173299,37948.0,37946.0,0.05102967]
[1643966028932,1.33173299,37948.0,37945.0,0.00019436]
[1643966029134,0.29369621,37947.0,37945.0,0.00102967]
[1643966029333,0.29369621,37947.0,37945.0,0.00122403]
[1643966029577,0.29369621,37947.0,37945.0,0.00102967]
[1643966030175,0.29369621,37947.0,37944.0,0.00019436]
[1643966030377,0.29369621,37947.0,37944.0,0.00102969]
[1643966030576,0.29369621,37947.0,37944.0,0.00122405]
[1643966031379,0.29369621,37947.0,37944.0,0.00019436]
[1643966031679,0.29369621,37947.0,37944.0,0.00102969]
[1643966031878,0.29369621,37947.0,37944.0,0.00122405]
[1643966032583,0.29369621,37947.0,37944.0,0.00019436]
[1643966032878,0.29369621,37947.0,37944.0,0.00122405]
[1643966033327,1.39764085,37948.0,37944.0,0.00122405]
[1643966033726,1.39764085,37948.0,37944.0,0.00019436]
[1643966033927,0.32178648,37947.0,37944.0,0.00102969]
[1643966034128,0.32178648,37947.0,37944.0,0.00122405]
[1643966034930,0.32178648,37947.0,37944.0,0.00019436]
[1643966035133,1.39764085,37948.0,37944.0,0.00102969]
[1643966035329,0.28623399,37947.0,37944.0,0.00122405]
[1643966036131,0.28623399,37947.0,37944.0,0.00019436]
[1643966036330,1.39764085,37948.0,37944.0,0.00102969]
[1643966036532,0.44764085,37948.0,37944.0,0.00122405]
[1643966036979,1.68969239,37945.0,37944.0,0.00122405]
[1643966037375,0.44764085,37948.0,37944.0,0.00019436]
[1643966037574,0.44764085,37948.0,37943.0,0.18283071]
[1643966037780,0.67597588,37948.0,37943.0,0.05102971]
[1643966037977,0.51355285,37948.0,37943.0,0.05102971]
[1643966038179,0.51355285,37948.0,37943.0,0.00102971]
[1643966038579,0.51355285,37948.0,37942.0,0.00019436]
[1643966038779,0.28410697,37943.0,37941.0,0.12720836]
[1643966038980,0.28410697,37943.0,37942.0,0.00019436]
[1643966039180,0.28410697,37943.0,37941.0,0.12720836]
[1643966039581,0.28208528,37942.0,37941.0,0.12720836]
[1643966040834,0.31223176,37947.0,37944.0,0.23404049]
[1643966041033,0.62621426,37947.0,37944.0,0.23404049]
[1643966041234,0.62621426,37947.0,37944.0,0.28404049]
[1643966041436,0.89762722,37947.0,37944.0,0.28404049]
[1643966041636,0.62621426,37947.0,37944.0,0.28404049]
[1643966041835,0.89821541,37947.0,37944.0,0.28404049]
[1643966042037,0.89821541,37947.0,37944.0,0.23423485]
[1643966042236,0.89821541,37947.0,37944.0,0.23404049]
[1643966042436,0.89821541,37947.0,37944.0,0.23501467]
[1643966043136,0.89821541,37947.0,37944.0,0.4261619]
[1643966043338,0.92299045,37947.0,37944.0,0.52518772]
[1643966043537,0.9274025,37947.0,37944.0,0.52635949]
[1643966043736,0.29496276,37946.0,37944.0,0.52635949]
[1643966043936,0.29496276,37946.0,37944.0,0.47635949]
[1643966044138,0.29549742,37946.0,37944.0,0.52635949]
[1643966044337,0.62621426,37947.0,37944.0,0.33521226]
[1643966044579,0.62621426,37947.0,37944.0,0.28423485]
[1643966044779,0.29640299,37946.0,37944.0,0.33521226]
[1643966044979,0.29640299,37946.0,37944.0,0.28521226]
[1643966045682,0.29640299,37946.0,37944.0,0.23404049]
[1643966046178,0.29640299,37946.0,37944.0,0.23423485]
[1643966046579,0.80732957,37947.0,37945.0,0.05]
[1643966046782,0.80732957,37947.0,37945.0,0.05019436]
[1643966047179,0.62621426,37947.0,37945.0,0.05019436]
[1643966047880,0.31223176,37947.0,37945.0,0.05019436]
[1643966051233,0.31223176,37947.0,37945.0,0.00019436]
[1643966051430,0.31223176,37947.0,37944.0,0.23501769]
[1643966051431,0.2955172,37946.0,37944.0,0.23501769]
[1643966051831,0.2955172,37946.0,37944.0,0.23404049]
[1643966052285,0.2955172,37946.0,37944.0,0.23423485]
[1643966052682,0.31223176,37947.0,37944.0,0.23423485]
[1643966052884,0.31223176,37947.0,37944.0,0.28423485]
[1643966053083,0.31223176,37947.0,37944.0,0.2850177]
[1643966053485,0.31223176,37947.0,37944.0,0.23521206]
[1643966053687,0.31223176,37947.0,37944.0,0.23021206]
[1643966053987,0.31223176,37947.0,37944.0,0.28021206]
[1643966054187,0.31223176,37947.0,37944.0,0.27904049]
[1643966054384,0.31223176,37947.0,37944.0,0.27958072]
[1643966054785,0.31223176,37947.0,37944.0,0.27977508]
[1643966055186,0.31223176,37947.0,37944.0,0.22958072]
[1643966055386,0.31223176,37947.0,37944.0,0.22904049]
[1643966055587,0.31223176,37947.0,37944.0,0.22958072]
[1643966056032,0.31223176,37947.0,37944.0,0.22977508]
[1643966056429,0.31223176,37947.0,37944.0,0.19977508]
[1643966056631,0.31223176,37947.0,37944.0,0.19923485]
[1643966056828,0.31223176,37947.0,37944.0,0.19977508]
[1643966057029,0.37814082,37947.0,37944.0,0.19958072]
[1643966057429,0.30317582,37946.0,37944.0,0.19958072]
[1643966057830,1.79296027,37945.0,37944.0,0.19904049]
[1643966058230,1.97407558,37945.0,37944.0,0.19923485]
[1643966059232,1.97407558,37945.0,37944.0,0.19904049]
[1643966059485,0.18111531,37945.0,37944.0,0.19923485]
[1643966059878,0.13159537,37946.0,37944.0,0.19923485]
[1643966060280,0.13159537,37946.0,37944.0,0.19904049]
[1643966060479,0.13159537,37946.0,37944.0,0.19923485]
[1643966061380,1.09419943,37945.0,37944.0,0.19923485]
[1643966061580,1.09419943,37945.0,37944.0,0.19904049]
[1643966061780,1.27531474,37945.0,37944.0,0.19904049]
[1643966061981,1.09419943,37945.0,37944.0,0.19923485]
[1643966062182,0.98111531,37945.0,37944.0,0.19923485]
[1643966062583,0.8,37945.0,37944.0,0.19923485]
[1643966062784,1.11515504,37945.0,37944.0,0.19904049]
[1643966062983,1.11515504,37945.0,37944.0,0.19923485]
[1643966063242,0.49627035,37945.0,37944.0,0.24923485]
[1643966063441,0.18111531,37945.0,37944.0,0.24923485]
[1643966063641,0.61485372,37947.0,37944.0,0.24923485]
[1643966063844,0.61485372,37947.0,37944.0,0.19923485]
[1643966064040,0.61485372,37947.0,37944.0,0.19904049]
[1643966064241,0.61485372,37947.0,37944.0,0.19923485]
[1643966065242,0.68076156,37947.0,37944.0,0.20007005]
[1643966066345,0.27710074,37946.0,37944.0,0.20007005]
[1643966066543,0.34301174,37946.0,37944.0,0.20026441]
[1643966067478,0.34301174,37946.0,37944.0,0.19904049]
[1643966067680,0.63626515,37946.0,37944.0,0.19923485]
[1643966068080,0.7,37945.0,37944.0,0.19923485]
[1643966068680,0.7,37945.0,37944.0,0.19904049]
[1643966068883,0.88111531,37945.0,37944.0,0.19923485]
[1643966069079,0.52412705,37946.0,37944.0,0.19923485]
[1643966069280,0.18111531,37946.0,37945.0,0.29906146]
[1643966069480,0.18111531,37948.0,37945.0,0.29925582]
[1643966069680,0.99921301,37957.0,37945.0,0.29925582]
[1643966069681,0.18111531,37955.0,37946.0,0.05]
[1643966069880,0.18111531,37955.0,37947.0,0.29906146]
[1643966070080,0.57630755,37956.0,37947.0,0.29906146]
[1643966070279,0.35534856,37952.0,37947.0,0.29906146]
[1643966070480,0.35534856,37952.0,37946.0,0.27935355]
[1643966070728,0.28984057,37955.0,37948.0,0.065892]
[1643966071129,0.28984057,37955.0,37950.0,0.00054014]
[1643966071929,0.38470014,37954.0,37950.0,0.00054014]
[1643966072128,0.38470014,37954.0,37947.0,0.29906146]
[1643966072329,0.38470014,37954.0,37950.0,0.00054014]
[1643966072330,0.46578557,37954.0,37950.0,0.00054014]
[1643966073128,0.46578557,37954.0,37950.0,0.06643414]
[1643966073428,0.46578557,37954.0,37950.0,0.065894]
[1643966073629,0.46578557,37954.0,37950.0,0.0669238]
[1643966074582,0.46578557,37954.0,37950.0,0.065894]
[1643966074783,0.46578557,37954.0,37950.0,0.1169238]
[1643966075182,0.38470014,37954.0,37950.0,0.1169238]
[1643966075781,0.38470014,37954.0,37950.0,0.115894]
[1643966075981,0.38470014,37954.0,37950.0,0.1169238]
[1643966078085,0.38470014,37954.0,37950.0,0.115894]
[1643966078332,0.38470014,37954.0,37950.0,0.11643414]
[1643966078533,0.28984057,37955.0,37950.0,0.11643414]
[1643966078932,0.57071531,37957.0,37950.0,0.11643414]
[1643966079337,0.52137908,37957.0,37950.0,0.115894]
[1643966079532,0.33496797,37954.0,37951.0,0.00054012]
[1643966080533,0.33496797,37954.0,37950.0,0.065894]
[1643966080733,0.08320121,37953.0,37951.0,0.00054013]
[1643966081334,0.08320121,37953.0,37952.0,0.05]
[1643966081988,0.33496797,37954.0,37952.0,0.05]
[1643966082477,0.33496797,37954.0,37953.0,0.05]
[1643966083078,1.13496797,37954.0,37953.0,0.05]
[1643966085932,1.20086597,37954.0,37953.0,0.05]